fUSD/lending_fUSD_20240421
["ID","MTS","AMOUNT","RATE_DAILY","PERIOD"]
[323137851,1713705056386,-16704.9924797,0.00017977,2]
[323137852,1713705056396,-417.8839497,0.00017977,2]
[323137853,1713705056405,-4579.07236194,0.00017982,2]
[323137854,1713705056414,-6491.95718926,0.00017982,2]
[323137855,1713705056424,-3268.6877912,0.00017988,2]
[323137856,1713705056434,-75017.6278037,0.00017988,2]
[323137857,1713705056443,-13745.1417623,0.00017988,2]
[323137858,1713705056452,-417.8839497,0.00017988,2]
[323137859,1713705056461,-220.72579709,0.00017989,2]
[323137860,1713705056471,-1081.39429609,0.00017989,5]
[323137861,1713705056480,-757843.28966466,0.0001799,2]
[323137862,1713705056490,-364763.91288434,0.0001799,2]
[323137863,1713705056502,-2767.68267,0.0001799,2]
[323137864,1713705056512,-317.44251859,0.00017998,2]
[323137865,1713705056522,-155.0,0.00018,2]
[323137866,1713705056531,-1000.0,0.00018,2]
[323137867,1713705056540,-224.95407154,0.00018,2]
[323137868,1713705056550,-4238415.68110304,0.00018,2]
[323137869,1713705056860,-134914.39670334,0.00018,2]
[323137870,1713705057089,-326.74129765,0.00016438,2]
[323137871,1713705057109,-329.89870235,0.00016438,2]
[323137872,1713705057120,-656.64,0.00016712,2]
[323137873,1713705057130,-656.64,0.00016986,2]
[323137874,1713705057139,-151.0,0.00017988,2]
[323137875,1713705057148,-765.76954765,0.00018,2]
[323137876,1713705057160,-376.955934,0.00018,2]
[323137877,1713705057177,-8308.8690808,0.00018,2]
[323137878,1713705057388,-2500.0,0.00016338,2]
[323137879,1713705057398,-656.64,0.0001726,2]
[323137880,1713705057408,-656.64,0.00017534,2]
[323137881,1713705057417,-656.64,0.00017808,2]
[323137882,1713705057426,-151.0,0.0001799,2]
[323137883,1713705057436,-34772.5800664,0.00018,2]
[323137884,1713705057466,-654.70405,0.00018,2]
[323137885,1713705057477,-2833.98911033,0.00018,2]
[323137886,1713705057541,-4162.78859217,0.00018,2]
[323137887,1713705057638,-13373.8004515,0.00018,2]
[323137888,1713705057995,-1000.0,0.00016437,2]
[323137889,1713705058005,-500.0,0.00016438,2]
[323137890,1713705058014,-500.0,0.00016699,2]
[323137891,1713705058024,-500.0,0.00016712,2]
[323137892,1713705058034,-500.0,0.00016973,2]
[323137893,1713705058044,-500.0,0.00016986,2]
[323137894,1713705058053,-196.03882751,0.00017247,2]
[323137895,1713705058065,-76.50816916,0.00017247,2]
[323137896,1713705058075,-199.41083084,0.0001726,2]
[323137897,1713705058096,-293.591876,0.0001726,2]
[323137898,1713705058108,-6.99729316,0.0001726,2]
[323137899,1713705058118,-500.0,0.00017534,2]
[323137900,1713705058128,-500.0,0.00017808,2]
[323137901,1713705058138,-281.39164425,0.00018,2]
[323137902,1713705058150,-640.7472672,0.00018,2]
[323137903,1713705058346,-811.34832108,0.00018,2]
[323137904,1713705058360,-6650.77657016,0.00018,2]
[323137905,1713705058371,-1601.71927009,0.00018,2]
[323137906,1713705058382,-1575.49999999,0.00018,2]
[323137907,1713705058393,-1138.3030903,0.00018,2]
[323137908,1713705058411,-6038.64499808,0.00018,2]
[323137909,1713705058429,-20759.28685747,0.00018,2]
[323137911,1713705073954,1156.24808183,0.00013244,2]
[323137912,1713705073974,4000.0,0.00013244,2]
[323137913,1713705073994,1212.26013034,0.00013244,2]
[323137916,1713705147823,793.91038418,0.00022,30]
[323137921,1713705753902,445.16,0.00013367,2]
[323137922,1713705801278,195.59127209,0.00013367,2]
[323137923,1713705821280,155.0,0.00013367,2]
[323137924,1713705843264,155.0,0.00013367,2]
[323137925,1713705859275,155.0,0.00013367,2]
[323137926,1713705877269,155.0,0.00013367,2]
[323137927,1713705899292,271.02690616,0.00013367,2]
[323137928,1713705924907,191.7795373,0.000133,2]
[323137929,1713706078560,2402.9056592,0.000224,30]
[323137930,1713706163112,-155.0,0.00014673,2]
[323137931,1713706163132,-268.126103,0.00014674,2]
[323137932,1713706163152,-125.61132865,0.00014749,2]
[323137936,1713706232506,-255.3668917,0.00014899,2]
[323137937,1713706232515,-173.72258374,0.000149,2]
[323137938,1713706232524,-2536.16669161,0.0001495,2]
[323137939,1713706232796,-261.0715806,0.0001495,2]
[323137940,1713706232807,-6837.8,0.0001495,2]
[323137941,1713706232818,-10448.04172779,0.0001495,2]
[323137942,1713706232831,-1000.0,0.00014981,2]
[323137943,1713706232843,-200.0,0.00014987,2]
[323137944,1713706232852,-2701.95826721,0.00014988,2]
[323137968,1713706238149,-2298.50173279,0.00014988,2]
[323137970,1713706238158,-181.12,0.00014989,2]
[323137972,1713706238167,-750.0,0.00015,2]
[323137974,1713706238176,-558.95,0.00015029,2]
[323137975,1713706238187,-500.0,0.00015068,2]
[323137977,1713706238196,-150.0,0.00015094,2]
[323137979,1713706238207,-150.0,0.00015236,2]
[323137981,1713706238216,-4870.46660472,0.00015237,2]
[323137983,1713706238228,-307.00339528,0.00015237,2]
[323137985,1713706238237,-160.94078608,0.00015237,2]
[323137988,1713706238349,-110.92921392,0.00015237,2]
[323137989,1713706238358,-1402.67,0.00015238,2]
[323137990,1713706238367,-500.0,0.00015342,2]
[323137991,1713706238377,-156.26,0.00015409,2]
[323137992,1713706238386,-155.0,0.00015615,2]
[323137993,1713706238395,-500.0,0.00015616,2]
[323137994,1713706238406,-445.16,0.00015631,2]
[323137995,1713706238415,-500.0,0.0001589,2]
[323137996,1713706238425,-1000.0,0.00016,2]
[323137997,1713706238434,-499.99,0.00016028,2]
[323137998,1713706238444,-478.61,0.0001608,2]
[323137999,1713706238454,-799.04,0.0001611,10]
[323138000,1713706238463,-500.0,0.00016164,2]
[323138001,1713706238472,-156.26,0.00016212,2]
[323138002,1713706238481,-2298.0,0.000163,2]
[323138003,1713706238491,-4821.73,0.00016304,2]
[323138004,1713706238500,-156.15069002,0.00016336,2]
[323138005,1713706238510,-2357.76557745,0.00016336,2]
[323138006,1713706238519,-1059.74600206,0.00016336,2]
[323138007,1713706238529,-2402.48756872,0.00016336,2]
[323138008,1713706238538,-202.23587417,0.00016336,2]
[323138009,1713706238548,-433.53247002,0.00016337,2]
[323138011,1713706238557,-7164.41253624,0.00016338,2]
[323138015,1713706238580,-24797.83544714,0.00016338,2]
[323138019,1713706238611,-6477.02,0.00016338,2]
[323138021,1713706238625,-36501.80921662,0.00016338,2]
[323138023,1713706238635,-500.0,0.00016338,2]
[323138025,1713706238644,-45.09960219,0.00016338,2]
[323138059,1713706238947,-5959.92349781,0.00016338,2]
[323138060,1713706238956,-1509.4905,0.00016338,2]
[323138061,1713706238966,-195.0,0.00016411,2]
[323138062,1713706238976,-848.87813359,0.0001642,4]
[323138063,1713706238985,-155.0,0.00016436,2]
[323138064,1713706238995,-444.05092147,0.00016438,2]
[323138065,1713706239004,-500.0,0.00016438,2]
[323138066,1713706239013,-500.0,0.00016438,2]
[323138067,1713706239023,-500.0,0.00016438,2]
[323138068,1713706239032,-500.0,0.00016438,2]
[323138069,1713706239042,-500.0,0.00016438,2]
[323138070,1713706239051,-500.0,0.00016438,2]
[323138071,1713706239061,-500.0,0.00016438,2]
[323138072,1713706239070,-631.02138107,0.00016438,2]
[323138073,1713706239079,-500.0,0.00016438,2]
[323138074,1713706239089,-500.0,0.00016438,2]
[323138075,1713706239099,-500.0,0.00016438,2]
[323138076,1713706239108,-500.0,0.00016438,2]
[323138077,1713706239117,-500.0,0.00016438,2]
[323138078,1713706239126,-500.0,0.00016438,2]
[323138079,1713706239134,-500.0,0.00016438,2]
[323138080,1713706239144,-500.0,0.00016438,2]
[323138081,1713706239153,-500.0,0.00016438,2]
[323138082,1713706239163,-500.0,0.00016438,2]
[323138083,1713706239172,-500.0,0.00016438,2]
[323138084,1713706239181,-500.0,0.00016438,2]
[323138085,1713706239190,-500.0,0.00016438,2]
[323138086,1713706239199,-565.89701974,0.00016438,2]
[323138087,1713706239208,-500.0,0.00016438,2]
[323138088,1713706239216,-500.0,0.00016438,2]
[323138089,1713706239225,-500.0,0.00016438,2]
[323138090,1713706239234,-500.0,0.00016438,2]
[323138091,1713706239243,-500.0,0.00016438,2]
[323138092,1713706239253,-500.0,0.00016438,2]
[323138093,1713706239262,-500.0,0.00016438,2]
[323138094,1713706239271,-500.0,0.00016438,2]
[323138095,1713706239280,-936.93,0.00016438,2]
[323138096,1713706239289,-582.59,0.00016438,2]
[323138097,1713706239299,-533.67,0.00016438,2]
[323138098,1713706239308,-500.0,0.00016438,2]
[323138099,1713706239317,-713.27,0.00016438,2]
[323138100,1713706239326,-1134.34,0.00016438,2]
[323138101,1713706239336,-823.82,0.00016438,2]
[323138102,1713706239348,-722.64,0.00016438,2]
[323138103,1713706239357,-500.0,0.00016438,2]
[323138104,1713706239366,-500.0,0.00016438,2]
[323138105,1713706239375,-500.0,0.00016438,2]
[323138106,1713706239385,-565.8,0.00016438,2]
[323138107,1713706239394,-500.0,0.00016438,2]
[323138108,1713706239403,-1058.6,0.00016438,2]
[323138109,1713706239412,-500.0,0.00016438,2]
[323138110,1713706239422,-647.51,0.00016438,2]
[323138111,1713706239431,-500.0,0.00016438,2]
[323138112,1713706239440,-844.09,0.00016438,2]
[323138113,1713706239449,-514.98,0.00016438,2]
[323138114,1713706239458,-500.0,0.00016438,2]
[323138115,1713706239467,-500.0,0.00016438,2]
[323138116,1713706239476,-634.13,0.00016438,2]
[323138117,1713706239485,-675.39,0.00016438,2]
[323138118,1713706239495,-726.09,0.00016438,2]
[323138119,1713706239503,-500.0,0.00016438,2]
[323138120,1713706239513,-551.9,0.00016438,2]
[323138121,1713706239522,-500.0,0.00016438,2]
[323138122,1713706239533,-500.0,0.00016438,2]
[323138123,1713706239542,-500.0,0.00016438,2]
[323138124,1713706239551,-500.0,0.00016438,2]
[323138125,1713706239560,-602.64,0.00016438,2]
[323138126,1713706239570,-839.03,0.00016438,2]
[323138127,1713706239579,-508.14,0.00016438,2]
[323138128,1713706239588,-539.62,0.00016438,2]
[323138129,1713706239599,-500.0,0.00016438,2]
[323138130,1713706239608,-725.15,0.00016438,2]
[323138131,1713706239618,-579.52,0.00016438,2]
[323138132,1713706239627,-500.0,0.00016438,2]
[323138133,1713706239636,-280.54,0.00016438,2]
[323138134,1713706239646,-500.0,0.00016438,2]
[323138135,1713706239655,-500.0,0.00016438,2]
[323138136,1713706239665,-500.0,0.00016438,2]
[323138137,1713706239674,-187.66,0.00016438,2]
[323138138,1713706239683,-752.66,0.00016438,2]
[323138139,1713706239693,-561.82,0.00016438,2]
[323138140,1713706239701,-239.79467273,0.00016438,2]
[323138141,1713706239711,-500.0,0.00016438,2]
[323138142,1713706239720,-520.28,0.00016438,2]
[323138143,1713706239729,-614.19,0.00016438,2]
[323138144,1713706239738,-581.34,0.00016438,2]
[323138145,1713706239747,-573.92,0.00016438,2]
[323138146,1713706239756,-585.7,0.00016438,2]
[323138147,1713706239766,-545.13,0.00016438,2]
[323138148,1713706239775,-784.11,0.00016438,2]
[323138149,1713706239784,-500.0,0.00016438,2]
[323138150,1713706239793,-672.71,0.00016438,2]
[323138151,1713706239803,-899.88,0.00016438,2]
[323138152,1713706239812,-593.18,0.00016438,2]
[323138153,1713706239825,-500.0,0.00016438,2]
[323138154,1713706239834,-500.0,0.00016438,2]
[323138155,1713706239844,-500.0,0.00016438,2]
[323138156,1713706239853,-500.0,0.00016438,2]
[323138157,1713706239863,-848.03,0.00016438,2]
[323138158,1713706239871,-624.33,0.00016438,2]
[323138159,1713706239881,-500.0,0.00016438,2]
[323138160,1713706239890,-2351.02,0.00016438,2]
[323138161,1713706239899,-500.0,0.00016438,2]
[323138162,1713706239909,-852.66,0.00016438,2]
[323138163,1713706239918,-735.21,0.00016438,2]
[323138164,1713706239927,-500.0,0.00016438,2]
[323138165,1713706239936,-1278.42,0.00016438,2]
[323138166,1713706239945,-161.38937312,0.00016438,2]
[323138174,1713706240321,-338.61062688,0.00016438,2]
[323138175,1713706240331,-264.52752535,0.00016438,2]
[323138176,1713706240342,-694.73,0.00016438,2]
[323138177,1713706240350,-500.0,0.00016438,2]
[323138178,1713706240361,-1020.84,0.00016438,2]
[323138179,1713706240371,-9018.91,0.00016438,2]
[323138180,1713706240380,-500.0,0.00016438,2]
[323138181,1713706240389,-589.99,0.00016438,2]
[323138182,1713706240399,-914.29,0.00016438,2]
[323138183,1713706240408,-761.2,0.00016438,2]
[323138184,1713706240417,-3055.23,0.00016438,2]
[323138185,1713706240427,-500.0,0.00016438,2]
[323138186,1713706240436,-564.76,0.00016438,2]
[323138187,1713706240445,-721.18,0.00016438,2]
[323138188,1713706240454,-500.0,0.00016438,2]
[323138189,1713706240464,-500.0,0.00016438,2]
[323138190,1713706240473,-768.91,0.00016438,2]
[323138191,1713706240482,-1193.33,0.00016438,2]
[323138192,1713706240491,-957.97,0.00016438,2]
[323138193,1713706240500,-500.0,0.00016438,2]
[323138194,1713706240510,-1726.51,0.00016438,2]
[323138195,1713706240519,-500.0,0.00016438,2]
[323138196,1713706240529,-808.12,0.00016438,2]
[323138197,1713706240538,-676.24,0.00016438,2]
[323138198,1713706240549,-654.77,0.00016438,2]
[323138199,1713706240558,-500.0,0.00016438,2]
[323138200,1713706240568,-791.41,0.00016438,2]
[323138201,1713706240577,-500.0,0.00016438,2]
[323138202,1713706240586,-500.0,0.00016438,2]
[323138203,1713706240597,-1149.1,0.00016438,2]
[323138204,1713706240606,-500.0,0.00016438,2]
[323138205,1713706240615,-849.23,0.00016438,2]
[323138206,1713706240624,-500.0,0.00016438,2]
[323138207,1713706240634,-627.09,0.00016438,2]
[323138208,1713706240644,-6520.32,0.00016438,2]
[323138209,1713706240653,-500.0,0.00016438,2]
[323138210,1713706240662,-916.52,0.00016438,2]
[323138211,1713706240671,-707.86,0.00016438,2]
[323138212,1713706240680,-500.0,0.00016438,2]
[323138213,1713706240689,-1005.67,0.00016438,2]
[323138214,1713706240699,-959.15,0.00016438,2]
[323138215,1713706240708,-500.0,0.00016438,2]
[323138216,1713706240717,-796.41,0.00016438,2]
[323138217,1713706240726,-500.0,0.00016438,2]
[323138218,1713706240735,-931.13,0.00016438,2]
[323138219,1713706240744,-628.6,0.00016438,2]
[323138220,1713706240753,-500.0,0.00016438,2]
[323138221,1713706240763,-500.0,0.00016438,2]
[323138222,1713706240772,-1026.39,0.00016438,2]
[323138223,1713706240781,-858.63,0.00016438,2]
[323138224,1713706240790,-3598.13,0.00016438,2]
[323138225,1713706240798,-500.0,0.00016438,2]
[323138226,1713706240808,-500.0,0.00016438,2]
[323138227,1713706240818,-500.0,0.00016438,2]
[323138228,1713706240830,-1761.08,0.00016438,2]
[323138229,1713706240839,-557.88,0.00016438,2]
[323138230,1713706240850,-605.67,0.00016438,2]
[323138231,1713706240858,-500.0,0.00016438,2]
[323138232,1713706240867,-539.17,0.00016438,2]
[323138233,1713706240876,-558.89,0.00016438,2]
[323138234,1713706240885,-946.74,0.00016438,2]
[323138235,1713706240895,-862.57,0.00016438,2]
[323138236,1713706240904,-500.0,0.00016438,2]
[323138237,1713706240913,-500.0,0.00016438,2]
[323138238,1713706240923,-3185.36,0.00016438,2]
[323138239,1713706240932,-1265.97,0.00016438,2]
[323138240,1713706240941,-1135.44,0.00016438,2]
[323138241,1713706240950,-500.0,0.00016438,2]
[323138242,1713706240959,-500.0,0.00016438,2]
[323138243,1713706240968,-1832.38,0.00016438,2]
[323138244,1713706240976,-500.0,0.00016438,2]
[323138245,1713706240985,-917.02,0.00016438,2]
[323138246,1713706240994,-500.0,0.00016438,2]
[323138247,1713706241004,-1168.36,0.00016438,2]
[323138248,1713706241013,-500.0,0.00016438,2]
[323138249,1713706241021,-955.71,0.00016438,2]
[323138250,1713706241030,-1050.92,0.00016438,2]
[323138251,1713706241039,-500.0,0.00016438,2]
[323138252,1713706241048,-852.51,0.00016438,2]
[323138253,1713706241056,-2444.64,0.00016438,2]
[323138254,1713706241065,-500.0,0.00016438,2]
[323138255,1713706241074,-1402.36,0.00016438,2]
[323138256,1713706241083,-956.08,0.00016438,2]
[323138257,1713706241092,-1184.33,0.00016438,2]
[323138258,1713706241101,-1105.34,0.00016438,2]
[323138259,1713706241109,-1609.02,0.00016438,2]
[323138260,1713706241118,-500.0,0.00016438,2]
[323138261,1713706241127,-1498.15,0.00016438,2]
[323138262,1713706241136,-500.0,0.00016438,2]
[323138263,1713706241146,-500.0,0.00016438,2]
[323138264,1713706241155,-658.71,0.00016438,2]
[323138265,1713706241164,-504.11,0.00016438,2]
[323138266,1713706241173,-500.0,0.00016438,2]
[323138267,1713706241182,-1161.76,0.00016438,2]
[323138268,1713706241194,-725.26,0.00016438,2]
[323138269,1713706241203,-1258.85,0.00016438,2]
[323138270,1713706241212,-1048.58,0.00016438,2]
[323138271,1713706241222,-534.63,0.00016438,2]
[323138272,1713706241231,-500.0,0.00016438,2]
[323138273,1713706241239,-833.28,0.00016438,2]
[323138274,1713706241252,-500.0,0.00016438,2]
[323138275,1713706241261,-500.0,0.00016438,2]
[323138276,1713706241270,-500.0,0.00016438,2]
[323138277,1713706241279,-1170.67,0.00016438,2]
[323138278,1713706241288,-500.0,0.00016438,2]
[323138279,1713706241297,-1755.27,0.00016438,2]
[323138280,1713706241307,-500.0,0.00016438,2]
[323138281,1713706241316,-697.31,0.00016438,2]
[323138282,1713706241527,-580.79,0.00016438,2]
[323138283,1713706241536,-611.93,0.00016438,2]
[323138284,1713706241546,-500.0,0.00016438,2]
[323138285,1713706241555,-543.83,0.00016438,2]
[323138286,1713706241564,-500.0,0.00016438,2]
[323138287,1713706241573,-500.0,0.00016438,2]
[323138288,1713706241583,-2425.74,0.00016438,2]
[323138289,1713706241593,-500.0,0.00016438,2]
[323138290,1713706241602,-500.0,0.00016438,2]
[323138291,1713706241611,-980.97,0.00016438,2]
[323138292,1713706241621,-712.96,0.00016438,2]
[323138293,1713706241630,-1242.26,0.00016438,2]
[323138294,1713706241639,-500.0,0.00016438,2]
[323138295,1713706241649,-530.23,0.00016438,2]
[323138296,1713706241658,-500.0,0.00016438,2]
[323138297,1713706241667,-1801.99,0.00016438,2]
[323138298,1713706241676,-644.23,0.00016438,2]
[323138299,1713706241685,-500.0,0.00016438,2]
[323138300,1713706241694,-500.0,0.00016438,2]
[323138301,1713706241703,-500.0,0.00016438,2]
[323138302,1713706241712,-500.0,0.00016438,2]
[323138303,1713706241722,-346.29635697,0.00016438,2]
[323138304,1713706241731,-500.0,0.00016438,2]
[323138305,1713706241741,-1000.0,0.00016438,2]
[323138306,1713706241750,-500.0,0.00016438,2]
[323138307,1713706241760,-802.06,0.00016438,2]
[323138308,1713706241769,-500.0,0.00016438,2]
[323138309,1713706241778,-500.0,0.00016438,2]
[323138310,1713706241787,-500.0,0.00016438,2]
[323138311,1713706241797,-1871.18,0.00016438,2]
[323138312,1713706241806,-500.0,0.00016438,2]
[323138313,1713706241816,-4426.84,0.00016438,2]
[323138314,1713706241828,-687.44,0.00016438,2]
[323138315,1713706241837,-767.0,0.00016438,2]
[323138316,1713706241847,-182.31168228,0.00016438,2]
[323138317,1713706241856,-1223.49,0.00016438,2]
[323138318,1713706241866,-500.0,0.00016438,2]
[323138319,1713706241876,-560.52,0.00016438,2]
[323138320,1713706241885,-500.0,0.00016438,2]
[323138321,1713706241894,-500.0,0.00016438,2]
[323138322,1713706241905,-660.61,0.00016438,2]
[323138323,1713706241916,-500.0,0.00016438,2]
[323138324,1713706241926,-358.9104,0.00016587,2]
[323138325,1713706241936,-160.87,0.00016663,2]
[323138326,1713706241945,-22746.90720862,0.0001671,2]
[323138327,1713706241955,-971.58657117,0.00016711,2]
[323138328,1713706241963,-500.0,0.00016711,2]
[323138329,1713706241973,-500.0,0.00016711,2]
[323138330,1713706241983,-500.0,0.00016711,2]
[323138331,1713706241992,-500.0,0.00016711,2]
[323138332,1713706242001,-391.06,0.00016711,2]
[323138333,1713706242010,-451.52,0.00016711,2]
[323138334,1713706242019,-500.0,0.00016711,2]
[323138335,1713706242028,-500.0,0.00016711,2]
[323138336,1713706242037,-500.0,0.00016711,2]
[323138337,1713706242046,-500.0,0.00016711,2]
[323138338,1713706242055,-500.0,0.00016711,2]
[323138339,1713706242064,-445.82,0.00016711,2]
[323138340,1713706242073,-500.0,0.00016711,2]
[323138341,1713706242082,-500.0,0.00016711,2]
[323138342,1713706242091,-500.0,0.00016711,2]
[323138343,1713706242100,-500.0,0.00016711,2]
[323138344,1713706242109,-292.45,0.00016711,2]
[323138345,1713706242118,-173.24,0.00016711,2]
[323138346,1713706242127,-500.0,0.00016711,2]
[323138347,1713706242136,-500.0,0.00016711,2]
[323138348,1713706242145,-500.0,0.00016711,2]
[323138349,1713706242155,-597.94,0.00016711,2]
[323138350,1713706242164,-500.0,0.00016711,2]
[323138351,1713706242173,-500.0,0.00016711,2]
[323138352,1713706242182,-500.0,0.00016711,2]
[323138353,1713706242191,-500.0,0.00016711,2]
[323138354,1713706242200,-500.57,0.00016711,2]
[323138355,1713706242209,-500.0,0.00016711,2]
[323138356,1713706242218,-500.0,0.00016711,2]
[323138357,1713706242227,-500.0,0.00016711,2]
[323138358,1713706242236,-500.0,0.00016711,2]
[323138359,1713706242245,-500.0,0.00016711,2]
[323138360,1713706242254,-500.0,0.00016711,2]
[323138361,1713706242263,-500.0,0.00016711,2]
[323138362,1713706242273,-500.0,0.00016711,2]
[323138363,1713706242282,-500.0,0.00016711,2]
[323138364,1713706242291,-500.0,0.00016711,2]
[323138365,1713706242300,-500.0,0.00016711,2]
[323138366,1713706242309,-500.0,0.00016711,2]
[323138367,1713706242318,-500.0,0.00016711,2]
[323138368,1713706242327,-500.0,0.00016711,2]
[323138369,1713706242336,-500.0,0.00016711,2]
[323138370,1713706242347,-500.0,0.00016711,2]
[323138371,1713706242356,-500.0,0.00016711,2]
[323138372,1713706242365,-500.0,0.00016711,2]
[323138373,1713706242374,-500.0,0.00016711,2]
[323138374,1713706242384,-500.0,0.00016711,2]
[323138375,1713706242393,-500.0,0.00016711,2]
[323138376,1713706242402,-500.0,0.00016711,2]
[323138377,1713706242412,-500.0,0.00016711,2]
[323138378,1713706242421,-500.0,0.00016711,2]
[323138379,1713706242430,-500.0,0.00016711,2]
[323138380,1713706242439,-500.0,0.00016711,2]
[323138381,1713706242448,-500.0,0.00016711,2]
[323138382,1713706242458,-500.0,0.00016711,2]
[323138383,1713706242467,-500.0,0.00016711,2]
[323138384,1713706242476,-500.0,0.00016711,2]
[323138385,1713706242485,-500.0,0.00016711,2]
[323138386,1713706242525,-500.0,0.00016711,2]
[323138387,1713706242535,-500.0,0.00016711,2]
[323138388,1713706242545,-500.0,0.00016711,2]
[323138389,1713706242555,-1184.15,0.00016711,2]
[323138390,1713706242565,-794.68,0.00016711,2]
[323138391,1713706242575,-500.0,0.00016711,2]
[323138392,1713706242585,-573.56,0.00016711,2]
[323138393,1713706242594,-500.0,0.00016711,2]
[323138394,1713706242604,-500.0,0.00016711,2]
[323138395,1713706242614,-500.0,0.00016711,2]
[323138396,1713706242623,-745.28,0.00016711,2]
[323138397,1713706242633,-500.0,0.00016711,2]
[323138398,1713706242642,-500.0,0.00016711,2]
[323138399,1713706242651,-500.0,0.00016711,2]
[323138400,1713706242661,-561.26,0.00016711,2]
[323138401,1713706242671,-500.0,0.00016711,2]
[323138402,1713706242680,-500.0,0.00016711,2]
[323138403,1713706242693,-597.97,0.00016711,2]
[323138404,1713706242703,-500.0,0.00016712,2]
[323138405,1713706242713,-500.0,0.00016712,2]
[323138406,1713706242723,-500.0,0.00016712,2]
[323138407,1713706242733,-500.0,0.00016712,2]
[323138408,1713706242742,-500.0,0.00016712,2]
[323138409,1713706242752,-500.0,0.00016712,2]
[323138410,1713706242761,-500.0,0.00016712,2]
[323138411,1713706242770,-500.0,0.00016712,2]
[323138412,1713706242779,-500.0,0.00016712,2]
[323138413,1713706242789,-500.0,0.00016712,2]
[323138414,1713706242798,-500.0,0.00016712,2]
[323138415,1713706242806,-500.0,0.00016712,2]
[323138416,1713706242816,-500.0,0.00016712,2]
[323138417,1713706242829,-500.0,0.00016712,2]
[323138418,1713706242839,-500.0,0.00016712,2]
[323138419,1713706242849,-500.0,0.00016712,2]
[323138420,1713706242858,-500.0,0.00016712,2]
[323138421,1713706242868,-500.0,0.00016712,2]
[323138422,1713706242877,-500.0,0.00016712,2]
[323138423,1713706242886,-936.93,0.00016712,2]
[323138424,1713706242896,-533.67,0.00016712,2]
[323138426,1713706242908,-500.0,0.00016712,2]
[323138428,1713706242917,-713.27,0.00016712,2]
[323138429,1713706242926,-1134.34,0.00016712,2]
[323138431,1713706242935,-823.82,0.00016712,2]
[323138433,1713706242944,-722.64,0.00016712,2]
[323138435,1713706242953,-514.83,0.00016712,2]
[323138437,1713706242962,-500.0,0.00016712,2]
[323138438,1713706242971,-500.0,0.00016712,2]
[323138439,1713706242980,-565.8,0.00016712,2]
[323138440,1713706242989,-500.0,0.00016712,2]
[323138441,1713706242998,-1058.6,0.00016712,2]
[323138442,1713706243007,-500.0,0.00016712,2]
[323138444,1713706243016,-647.51,0.00016712,2]
[323138446,1713706243025,-500.0,0.00016712,2]
[323138447,1713706243034,-844.09,0.00016712,2]
[323138448,1713706243043,-514.98,0.00016712,2]
[323138449,1713706243052,-500.0,0.00016712,2]
[323138450,1713706243061,-500.0,0.00016712,2]
[323138451,1713706243070,-634.13,0.00016712,2]